Workbook

Sheet Rozvaha
A1: Název položky | B1: 2016 | C1: 2017 | D1: 2018
A2: Rozdíl aktiv a pasiv | E2: údaje jsou v tis. Kč
A3: AKTIVA CELKEM | B3: =B5+B33+B65 -> 544951 | C3: =C5+C33+C65 -> 844227 | D3: =D5+D33+D65 -> 1215047 | H3: v %
A4: A. POHLEDÁVKY ZA UPSANÝ ZÁKLADNÍ KAPITÁL | B4: 0 | C4: 0 | D4: 0 | G4: Horizontální analýza | I4: 2016 | J4: 2017 | K4: 2018
A5: B. DLOUHODOBÝ MAJETEK | B5: =B6+B15+B25 -> 78967 | C5: 104566 | D5: =D6+D15+D25 -> 136801 | G5: Aktiva celkem | I5: -
A6: B.I. DLOUHODOBÝ NEHMOTNÝ MAJETEK | B6: 55568 | C6: 60799 | D6: =D9+D12+D13 -> 96657 | G6: Dlouhodobý majetek | I6: - | J6: 32.42 | K6: 73.24
A7: B.I. 1. Zřizovací výdaje | H7: nehmotný | I7: - | J7: 9.41 | K7: 73.94
A8: B.I. 2. Nehmotné výsledky výzkumu a vývoje | H8: hmotný | I8: - | J8: 87.95 | K8: 64.45
A9: B.I. 3. Software | B9: 35697 | C9: 40772 | D9: 74717 | H9: finanční | I9: - | J9: 0.41 | K9: 755.19
A10: B.I. 4. Ocenitelná práva | G10: Oběžný majetek | I10: - | J10: 57.09 | K10: 124.69
A11: B.I. 5. Goodwill | H11: zásoby | I11: - | J11: 0 | K11: nelze procentně vyjádřit
A12: B.I. 6. Jiný dlouhodobý nehmotný majetek | B12: 17653 | C12: 13656 | D12: 9659 | H12: pohledávky | I12: - | J12: 59.02 | K12: 123.01
A13: B.I. 7. Nedokočený dlouhodobý nehmotný majetek | B13: 2218 | C13: 6371 | D13: 12281 | H13: finační majetek | I13: - | J13: 48.33 | K13: 131.7
A14: B.I. 8. Poskytnuté zálohy na dlouhodobý nehmotný majetek | B14: 3910 | G14: časové rozlišení | J14: 176.74 | K14: 599.56
A15: B.II. DLOUHODOBÝ HMOTNÝ MAJETEK | B15: =B17+B18+B22 -> 23158 | C15: =C17+C18 -> 43525 | D15: =D17+D18 -> 38083 | G15: Pasiva celkem | I15: - | J15: 54.92 | K15: 122.96
A16: B.II. 1. Pozemky | G16: VK | I16: - | J16: 52.97 | K16: 128.45
A17: B.II. 2. Stavby | B17: 16811 | C17: 25837 | D17: 20824 | G17: CZ | I17: - | J17: 56.32 | K17: 120.74
A18: B.II. 3. Samostatné movité věci a soubory movitých věcí | B18: 2437 | C18: 17688 | D18: 17259 | H18: rezervy | I18: - | J18: 103.65 | K18: 202.53
A19: B.II. 4. Pěstitelské celky trvalých porostů | H19: závazky | I19: - | J19: 62.22 | K19: 164.72
A20: B.II. 5. Základní stádo a tažná zvířata | H20: úvěry | I20: - | J20: 38.05 | K20: 37.26
A21: B.II. 6. Jiný dlouhodobý hmotný majetek | G21: časové rozlišení | I21: - | J21: 0 | K21: 164.02
A22: B.II. 7. Nedokončený dlouhodobý hmotný majetek | B22: 3910
A23: B.II. 8. Poskytnuté zálohy na dlouhodobý hmotný majetek | H23: v % | I23: porovnávat s AKTIVA CELKEM DANÉHO ROKU
A24: B.II. 9. Oceňovací rozdíl k nabytému majetku | G24: Vertikální analýza | I24: 2016 | J24: 2017 | K24: 2018
A25: B.III. DLOUHODOBY FINANČNÍ MAJETEK | B25: =B26 -> 241 | C25: 242 | D25: =D26+D28+D29 -> 2061 | G25: Aktiva celkem | I25: 544951 | J25: 844277 | K25: 1215047
A26: B.III. 1. Podíly v ovládaných a řízených osobách | B26: 241 | C26: 241 | D26: 275 | G26: Dlouhodobý majetek | I26: 14.49 | J26: 12.39 | K26: 11.26
A27: B.III. 2. Podíly v účetních jednotkách pod podstatným vlivem | H27: nehmotný | I27: 10.2 | J27: 7.2 | K27: 7.96
A28: B.III. 3. Ostatní dlouhodobé cenné papíry a podíly | C28: 1 | D28: 438 | H28: hmotný | I28: 4.25 | J28: 5.16 | K28: 3.13
A29: B.III. 4. Půjčky a úvěry - ovládající a řídící osoba, podstatný vliv | D29: 1348 | H29: finanční | I29: 0.04 | J29: 0.03 | K29: 0.17
A30: B.III. 5. Jiný dlouhodobý finanční majetek | G30: Oběžný majetek | I30: 84.34 | J30: 85.51 | K30: 84.99
A31: B.III. 6. Pořizovaný dlouhodobý finanční majetek | H31: zásoby | I31: 0 | J31: 0 | K31: 0.04
A32: B.III. 7. Poskytnuté zálohy na dlouhodobý finanční majetek | H32: pohledávky | I32: 69.12 | J32: 70.94 | K32: 69.13
A33: C. OBĚŽNÁ AKTIVA | B33: =B34+B41+B50+B60 -> 459592 | C33: =C34+C41+C50+C60 -> 721972 | D33: =D34+D41+D50+D60 -> 1032654 | H33: finační majetek | I33: 15.22 | J33: 14.57 | K33: 15.81
A34: C.I. ZÁSOBY | B34: 0 | C34: 0 | D34: 538 | G34: časové rozlišení | I34: 1.17 | J34: 2.1 | K34: 3.75
A35: C.I. 1. Materiál | G35: Pasiva celkem | I35: 544951 | J35: 844277 | K35: 1215047
A36: C.I. 2. Nedokončená výroba a polotovary | G36: VK | I36: 27.02 | J36: 26.68 | K36: 27.69
A37: C.I. 3. Výrobky | H37: ZK + fondy, 72+76 | I37: 5.22 | J37: 3.37 | K37: 2.34
A38: C.I. 4. Zvířata | H38: výsledek hospodaření, 84+87 | I38: 21.8 | J38: 23.31 | K38: 25.34 | L38: minulé+současné období
A39: C.I. 5. Zboží | D39: 538 | G39: CZ | I39: 72.66 | J39: 73.32 | K39: 71.94
A40: C.I. 6. Poskytnuté zálohy na zásoby | H40: rezervy | I40: 5.16 | J40: 6.78 | K40: 7
A41: C.II. DLOUHODOBÉ POHLEDÁVKY | B41: =B46+B49 -> 597 | C41: 8765 | D41: =D46+D49 -> 18837 | H41: závazky | I41: 40.91 | J41: 42.84 | K41: 48.57
A42: C.II. 1. Pohledávky z obchodních vztahů | H42: úvěry | I42: 26.6 | J42: 23.7 | K42: 16.37
A43: C.II. 2. Pohledávky - ovládající a řídící osoba | G43: časové rozlišení | I43: 0.32 | J43: 0 | K43: 0.37
A44: C.II. 3. Pohledávky - podstatný vliv
A45: C.II. 4. Pohledávky za společníky, členy dr. a za úč. sdružení
A46: C.II. 5. Dlouhodobé poskytnuté zálohy | B46: 41 | C46: 2563 | D46: 4222
A47: C.II. 6. Dohadné účty aktivní
A48: C.II. 7. Jiné pohledávky
A49: C.II. 8. Odložená daňová pohledávka | B49: 556 | C49: 6202 | D49: 14615
A50: C.III. KRÁTKODOBÉ POHLEDÁVKY | B50: =B52+B51+B56+B57+B58+B59 -> 376070 | C50: =C51+C52+C56+C57+C58+C59 -> 590203 | D50: =D51+D52+D56+D57+D58+D59 -> 821139
A51: C.III. 1. Pohledávky z obchodních vztahů | B51: 113022 | C51: 234565 | D51: 339849
A52: C.III. 2. Pohledávky - ovládající a řídící osoba | B52: 3576 | C52: 17047 | D52: 20047
A53: C.III. 3. Pohledávky - podstatný vliv
A54: C.III. 4. Pohl. za společníky, členy dr. a za úč. sdružení
A55: C.III. 5. Sociální zabezpečení a zdravotní pojištění
A56: C.III. 6. Stát - daňové pohledávky | B56: 8833 | C56: 7873 | D56: 9020
A57: C.III. 7. Krátkodobé poskytnuté zálohy | B57: 160881 | C57: 188537 | D57: 198328
A58: C.III. 8. Dohadné účty aktivní | B58: 85847 | C58: 125798 | D58: 237215
A59: C.III. 9. Jiné pohledávky | B59: 3911 | C59: 16383 | D59: 16680
A60: C.IV. KRÁTKODOBÝ FINANČNÍ MAJETEK | B60: =B61+B62 -> 82925 | C60: =C61+C62 -> 123004 | D60: =D61+D62 -> 192140
A61: C.IV.1. Peníze | B61: 39 | C61: 135 | D61: 132
A62: C.IV.2. Účty v bankách | B62: 82886 | C62: 122869 | D62: 192008
A63: C.IV.3. Krátkodobé cenné papíry a podíly
A64: C.IV.4. Pořizovaný krátkodobý finanční majetek
A65: D.I. ČASOVÉ ROZLIŠENÍ | B65: =B66 -> 6392 | C65: 17689 | D65: =D66+D68 -> 45592
A66: D.I. 1. Náklady příštích období | B66: 6392 | C66: 17689 | D66: 44716
A67: D.I. 2. Komplexní náklady příštích období
A68: D.I. 3. Příjmy příštích období | D68: 876
A70: PASIVA CELKEM | B70: =B71+B88+B121 -> 544951 | C70: =C71+C88 -> 844227 | D70: =D71+D88+D121 -> 1215047
A71: A. VLASTNÍ KAPITÁL | B71: =B72+B76+B84+B87 -> 147248 | C71: =C72+C76+C84+C87 -> 225244 | D71: =D72+D76+D84+D87 -> 336395
A72: A.I. ZÁKLADNÍ KAPITÁL | B72: 27950 | C72: 27950 | D72: 27950
A73: A.I. 1. Základní kapitál | B73: 27950 | C73: 27950 | D73: 27950
A74: A.I. 2. Vlastní akcie a vlastní obchodní podíly (-)
A75: A.I. 3. Změny základního kapitálu
A76: A.II. KAPITÁLOVÉ FONDY | B76: 500 | C76: 500 | D76: 500
A77: A.II. 1. Emisní ážio
A78: A.II. 2. Ostatní kapitálové fondy | B78: 500 | C78: 500 | D78: 500
A79: A.II. 3. Oceňovací rozdíly z přecenění majetku a závazků
A80: A.II. 4. Oceňovací rozdíly z přecenění při přeměnách
A81: A.III. REZ. FOND, NEDĚL. FOND A OST. FONDY ZE ZISKU
A82: A.III. 1. Zákonný rezervní fond/Nedělitelný fond
A83: A.III. 2. Statutární a ostatní fondy
A84: A.IV. VÝSLEDEK HOSPODAŘENÍ MINULÝCH LET | B84: =B86+B85 -> 28397 | C84: 118798 | D84: 196794
A85: A.IV. 1. Nerozdělený zisk minulých let | B85: 29057 | C85: 119458 | D85: 196794
A86: A.IV. 2. Neuhrazená ztráta minulých let | B86: -660 | C86: -660
A87: A.V. VÝSLEDEK HOSPODAŘENÍ BĚŽNÉHO ÚČ. OBDOBÍ | B87: 90401 | C87: 77996 | D87: 111151
A88: B. CIZI ZDROJE | B88: =B89+B105+B117 -> 395980 | C88: =C89+C105+C117 -> 618983 | D88: =D89+D105+D117 -> 874103
A89: B.I. REZERVY | B89: =B92+B93 -> 28098 | C89: =C92+C93 -> 57222 | D89: =D92+D93 -> 85004
A90: B.I. 1. Rezervy podle zvláštních právních předpisů
A91: B.I. 2. Rezerva na důchody a podobné závazky
A92: B.I. 3. Rezerva na daň z příjmů | B92: 20835 | C92: 21074 | D92: 15810
A93: B.I. 4. Ostatní rezervy | B93: 7263 | C93: 36148 | D93: 69194
A94: B.II. DLOUHODOBÉ ZÁVAZKY
A95: B.II. 1. Závazky z obchodních vztahů
A96: B.II. 2. Závazky - ovládající a řídící osoba
A97: B.II. 3. Závazky - podstatný vliv
A98: B.II. 4. Závazky ke společníkům, čl. dr. a k úč. sdružení
A99: B.II. 5. Dlouhodobé přijaté zálohy
A100: B.II. 6. Vydané dluhopisy
A101: B.II. 7. Dlouhodobé směnky k úhradě
A102: B.II. 8. Dohadné účty pasivní
A103: B.II. 9. Jiné závazky
A104: B.II. 10. Odložený daňový závazek
A105: B.III. KRÁTKODOBÉ ZÁVAZKY | B105: =B106+B109+B110+B111+B112+B113+B115+B116 -> 222937 | C105: =C106+C110+C111+C112+C113+C115+C116 -> 361659 | D105: =D106+D110+D111+D112+D113+D115+D116 -> 590148
A106: B.III. 1. Závazky z obchodních vztahů | B106: 86742 | C106: 187123 | D106: 349787
A107: B.III. 2. Závazky - ovládající a řídící osoba
A108: B.III. 3. Závazky - podstatný vliv
A109: B.III. 4. Závazky ke společníkům, čl. dr. a k úč. sdružení | B109: 1146
A110: B.III. 5. Závazky k zaměstnancům | B110: 16154 | C110: 22465 | D110: 30615
A111: B.III. 6. Závazky ze sociálního zabezpečení a zdr. pojištění | B111: 9050 | C111: 13433 | D111: 17013
A112: B.III. 7. Stát - daňové závazky a dotace | B112: 2872 | C112: 4640 | D112: 6176
A113: B.III. 8. Krátkodobé přijaté zálohy | B113: 8698 | C113: 7174 | D113: 17199
A114: B.III. 9. Vydané dluhopisy
A115: B.III.10. Dohadné účty pasivní | B115: 96574 | C115: 123039 | D115: 161082
A116: B.III.11. Jiné závazky | B116: 1701 | C116: 3785 | D116: 8276
A117: B.IV. BANKOVNÍ ÚVĚRY A VÝPOMOCI | B117: =B118+B119 -> 144945 | C117: =C118+C119 -> 200102 | D117: =D118+D119 -> 198951
A118: B.IV.1. Bankovní úvěry dlouhodobé | B118: 12769 | C118: 8356 | D118: 4676
A119: B.IV.2. Krátkodobé bankovní úvěry | B119: 132176 | C119: 191746 | D119: 194275
A120: B.IV.3. Krátkodobé finanční výpomoci
A121: C.I. ČASOVÉ ROZLIŠENÍ | B121: 1723 | C121: 0 | D121: 4549
A122: C.I. 1. Výdaje příštích období | D122: 4529
A123: C.I. 2. Výnosy příštích období | B123: 1723 | D123: 20

Sheet Výsledovka
A1: Název položky | B1: 2016 | C1: 2017 | D1: 2018
A2: I. Tržby za prodej zboží | D2: 66 | E2: údaje v tis. Kč
A3: A. Náklady vynaložené na prodané zboží | D3: 33 | I3: v %
A4: OBCHODNÍ MARŽE | D4: =D2-D3 -> 33 | G4: Horizontální analýza | J4: 2016 | K4: 2017 | L4: 2018
A5: II. Výkony | B5: 8404404 | C5: 18222686 | D5: 27683349 | G5: tržby (2+5) | J5: - | K5: 116.82 | L5: 229.39
A6: II.1. Tržby za prodej vlastních výrobků a služeb | B6: 8404404 | C6: 18222686 | D6: =D5 -> 27683349 | G6: náklady na tržby (3+9) | J6: - | K6: 119.9 | L6: 235.57
A7: II.2. Změna stavu zásob vlastní činnosti | G7: marže+přidaná hodnota (4+12) | J7: - | K7: 55.85 | L7: 106.95
A8: II.3. Aktivace | G8: osobní náklady (13) | J8: - | K8: 77.26 | L8: 145.89
A9: B. Výkonová spotřeba | B9: =B10+B11 -> 8000490 | C9: =C10+C11 -> 17593199 | D9: =D10+D11 -> 26847465 | G9: provozní výsledek hospodaření (31) | J9: - | K9: 39.06 | L9: 14.15
A10: B.1. Spotřeba materiálu a energie | B10: 6023 | C10: 14953 | D10: 10852 | G10: finanční výsledek hospodaření (49) | J10: - | K10: -184.27 | L10: -42.52
A11: B.2. Služby | B11: 7994467 | C11: 17578246 | D11: 26836613 | G11: výsledek hospodaření před zdaněním (62) | J11: - | K11: -4.29 | L11: 31.07
A12: PŘIDANÁ HODNOTA | B12: =B5-B9 -> 403914 | C12: =C5-C9 -> 629487 | D12: =D5-D9 -> 835884 | G12: daň z příjmů (50) | J12: - | K12: 31.67 | L12: 62.01
A13: C. Osobní náklady | B13: =B14+B16 -> 262932 | C13: =C14+C16 -> 466079 | D13: =D14+D16 -> 646528 | G13: výsledek hospodaření po zdanění (61) | J13: - | K13: -13.72 | L13: 22.95
A14: C.1. Mzdové náklady | B14: 195240 | C14: 339544 | D14: 471466
A15: C.2. Odměny členům orgánů společnosti a družstva
A16: C.3. Náklady na sociální zabezpečení a zdravotní pojištění | B16: 67692 | C16: 126535 | D16: 175062
A17: C.4. Sociální náklady | I17: v % | J17: provnávat s: OBJEM TRŽEB (2+5)
A18: D. Daně a poplatky | B18: 6 | C18: 24 | D18: 93 | G18: Horizontální analýza | J18: 2016 | K18: 2017 | L18: 2018
A19: E. Odpisy dlouhodobého nehmotného a hmotného majetku | B19: 12172 | C19: 31967 | D19: 42304 | G19: tržby (2+5) | J19: 8404404 | K19: 18222686 | L19: 27683415
A20: III. Tržby z prodeje dlouhodobého majetku a materiálu | C20: 17 | D20: 61 | G20: náklady na tržby (3+9) | J20: 95.19 | K20: 96.55 | L20: 96.98
A21: III.1. Tržby z prodeje dlouhodobého majetku | C21: 17 | D21: 61 | G21: marže+přidaná hodnota (4+12) | J21: 4.81 | K21: 3.45 | L21: 3.02
A22: III.2. Tržby z prodeje materiálu | G22: osobní náklady (13) | J22: 3.13 | K22: 2.56 | L22: 2.34
A23: F. Zůstatková cena prodaného dlouh. majetku a materiálu | C23: 6 | D23: 29 | G23: provozní výsledek hospodaření (31) | J23: 1.76 | K23: 1.13 | L23: 0.61
A24: F.1. Zůstatková cena prodaného dlouh. majetku | C24: 6 | D24: 29 | G24: finanční výsledek hospodaření (49) | J24: -0.41 | K24: -0.53 | L24: -0.07
A25: F.2. Prodaný materiál | G25: výsledek hospodaření před zdaněním (62) | J25: 1.36 | K25: 0.6 | L25: 0.54
A26: G. Změna stavu rezerv a opr. pol. v prov. obl. a kompl. nákl. př. obd. | C26: 28885 | D26: 33046 | G26: daň z příjmů (50) | J26: 0.28 | K26: 0.17 | L26: 0.14
A27: IV. Ostatní provozní výnosy | B27: 29739 | C27: 112679 | D27: 84275 | G27: výsledek hospodaření po zdanění (61) | J27: 1.08 | K27: 0.43 | L27: 0.4
A28: H. Ostatní provozní náklady | B28: 10380 | C28: 9191 | D28: 29129
A29: V. Převod provozních výnosů
A30: I. Převod provozních nákladů
A31: PROVOZNÍ VÝSLEDEK HOSPODAŘENÍ | B31: =B12+B27-B13-B28-B18-B19 -> 148163 | C31: =C12-C13-C18-C19+C20-C23-C26+C27-C28 -> 206031 | D31: =D4+D12-D13-D18-D19+D20-D23-D26+D27-D28 -> 169124
A32: VI. Tržby z prodeje cenných papírů a podílů
A33: J. Prodané cenné papíry a podíly
A34: VII. Vynosy z dlouhodobého finančního majetku
A35: VII.1. Výnosy z podílů v ovl. a říz. os. a v úč. j. pod podst. vlivem
A36: VII.2. Výnosy z ostatních dlouhodobých CP a podílů
A37: VII.3. Výnosy z ostatního dlouhodobého finančního majetku
A38: VIII. Výnosy z krátkodobého finančního majetku
A39: K. Náklady z finančního majetku
A40: IX. Výnosy z přecenění CP a derivátů
A41: L. Náklady z přecenění CP a derivátů
A42: M. Změna stavu rezerv a opravných položek ve finanční oblasti
A43: X. Výnosové úroky | B43: 6 | C43: 2 | D43: 10
A44: N. Nákladové úroky | B44: 565 | C44: 300 | D44: 207
A45: XI. Ostatní finanční výnosy | B45: 26416 | C45: 81589 | D45: 149229
A46: O. Ostatní finanční náklady | B46: 59920 | C46: 178122 | D46: 168610
A47: XII. Převod finančních výnosů
A48: P. Převod finančních nákladů
A49: FINANČNÍ VÝSLEDEK HOSPODAŘENÍ | B49: =B43+B45-B44-B46 -> -34063 | C49: =C43+C45-C44-C46 -> -96831 | D49: =D43+D45-D44-D46 -> -19578
A50: Q. Daň z příjmů za běžnou činnost | B50: =B51+B52 -> 23699 | C50: =C52+C51 -> 31204 | D50: =D52+D51 -> 38395
A51: Q. 1. splatná | B51: 24560 | C51: 36850 | D51: 46808
A52: Q. 2. odložená | B52: -861 | C52: -5646 | D52: -8413
A53: VÝSLEDEK HOSPODAŘENÍ ZA BĚŽNOU ČINNOST | B53: =B61 -> 90401 | C53: =C61 -> 77996 | D53: =D61 -> 111151 | E53: když není mimořádné, tak = ř. 61
A54: XIII. Mimořádné výnosy | E54: není
A55: R. Mimořádné náklady
A56: S. Daň z příjmů z mimořádné činnosti
A57: S. 1. splatná
A58: S. 2. odložená
A59: MIMOŘÁDNÝ VÝSLEDEK HOSPODAŘENÍ
A60: T. Převod podílu na VH společníkům (+/-)
A61: VÝSLEDEK HOSPODAŘENÍ ZA ÚČETNÍ OBDOBÍ (+/-) | B61: =B62-B50 -> 90401 | C61: =C62-C50 -> 77996 | D61: =D62-D50 -> 111151 | E61: po zdanění
A62: VÝSLEDEK HOSPODAŘENÍ PŘED ZDANĚNÍM (+/-) | B62: =B31+B49 -> 114100 | C62: =C31+C49 -> 109200 | D62: =D31+D49 -> 149546
A63: čistý obrat obrat za účetní období | B63: =B2+B5+B20+B27+B29+B32+B34+B38+B40+B43+B45+B47 -> 8460565 | C63: =C2+C5+C20+C27+C29+C32+C34+C38+C40+C43+C45+C47 -> 18416973 | D63: =D2+D5+D20+D27+D29+D43+D45 -> 27916990

Sheet Ukazatele prezentace
B1: 2016 | C1: 2017 | D1: 2018
A2: analýza ziskovosti
A3: čistý zisk (EAT) | B3: 90401 | C3: 77996 | D3: 111151
A4: zisk před zdaněním (EBT) | B4: 114100 | C4: 109200 | D4: 149546
A5: zisk před úroky a zdaněním (EBIT) | B5: 113529 | C5: 108898 | D5: 149329
A6: zisk před úroky, zdaněním a odpisy (EBITDA) | B6: 101357 | C6: 76931 | D6: 107025
A8: analýza rentability
A9: rentabilita tržeb (ROS) | B9: 0.0108 | C9: 0.0043 | D9: 0.004 | E9: VÝSLEDEK HOSPODAŘENÍ/TRŽBY, mělo by vycházet 2-50 %, ideálně přes 10 %
A10: rentabilita celkového kapitálu (ROA) | B10: 0.2083 | C10: 0.129 | D10: 0.1229 | E10: EBIT/AKTIVA
A11: rentabilita vlastního kapitálu (ROE) | B11: 0.6139 | C11: 0.3463 | D11: 0.3304 | E11: EAT/VLASTNÍ KAPITÁL
A13: analýza aktivity
A14: rychlost obratu zásob | B14: - | C14: - | D14: 51456.16 | E14: TRŽBY/ZÁSOBY
A15: doba obratu zásob | B15: - | C15: - | D15: 0.007 | E15: ZÁSOBY/TRŽBY*360
A16: rychlost obratu pohledávek | B16: 22.31 | C16: 30.42 | D16: 32.96 | E16: TRŽBY/POHLEDÁVKY
A17: doba obratu pohledávek | B17: 4.84 | C17: 4.63 | D17: 4.42 | E17: KTD POHLEDÁVKY Z OBCHOD. STYKU/TRŽBY *360
A18: doba obratu závazků | B18: 3.72 | C18: 3.7 | D18: 4.55 | E18: KTD ZÁVAZKY Z OBCHOD. STYKU/TRŽBY *360
A20: analýza likvidity
A21: běžná likvidita | B21: 5.29 | C21: 3.85 | D21: 2.95223 | E21: OA/KTD ZÁVAZKY Z OBCH. STYKU
A22: pohotová likvidita | B22: 5.29 | C22: 3.85 | D22: 2.95069 | E22: (OA-ZÁSOBY)/KTD ZÁVAZKY Z OBCH. STYKU
A23: peněžní likvidita | B23: 0.95 | C23: 0.65 | D23: 0.54 | E23: PENĚŽNÍ PROSTŘEDKY/KTD ZÁVAZKY Z OBCHODNÍHO STYKU
A25: analýza zadluženosti
A26: celková zadluženost | B26: 0.7266 | C26: 0.7332 | D26: 0.7194 | E26: CIZÍ ZDROJE/AKTIVA *100
A27: míra zadluženosti | B27: 2.6892 | C27: 2.7481 | D27: 2.5182 | E27: CIZÍ ZDROJE/VLASTNÍ KAPITÁL *100
A28: úrokové krytí | B28: 201.0478 | C28: 362.9933 | D28: 721.3961 | E28: EBIT/NÁKLADOVÉ ÚROKY *100
A30: ostatní ukazatele
A31: doba návratnosti úvěru | B31: 1.43 | C31: 2.6 | D31: 1.86 | E31: VÝŠE ÚVĚRU/EBITDA
A32: čistý pracovní kapitál (NWC) | B32: 104479 | C32: 168567 | D32: 248231 | E32: OA-KTD CIZÍ ZDROJE
